bitfinex/quotes_BTCUSD_20251231
["timestamp","ask_amount","ask_price","bid_price","bid_amount"]
[1767194117906,0.01156,88237.0,88226.0,0.01133452]
[1767194118279,0.01156,88237.0,88223.0,0.11805463]
[1767194118589,0.01156,88237.0,88219.0,0.01133542]
[1767194118814,0.01156,88237.0,88212.0,0.22672643]
[1767194118815,0.0977904,88236.0,88206.0,0.10671972]
[1767194119204,0.0977904,88236.0,88199.0,0.10671972]
[1767194119405,0.0977904,88236.0,88199.0,0.11805771]
[1767194119562,0.0977904,88236.0,88197.0,0.0004656]
[1767194119767,0.0977904,88234.0,88197.0,0.0004656]
[1767194119991,0.0977904,88232.0,88197.0,0.0004656]
[1767194120993,0.01156,88237.0,88197.0,6e-07]
[1767194120994,0.10545692,88230.0,88197.0,6e-07]
[1767194121176,0.10962818,88226.0,88197.0,6e-07]
[1767194121391,0.10962818,88226.0,88177.0,0.22681495]
[1767194121392,0.10962818,88222.0,88177.0,0.01134082]
[1767194121601,0.10962818,88222.0,88173.0,0.01156]
[1767194121602,0.10962818,88218.0,88173.0,0.01156]
[1767194121796,0.06730837,88221.0,88169.0,0.01134185]
[1767194121797,0.10962818,88214.0,88169.0,0.01134185]
[1767194122005,0.05692,88221.0,88166.0,0.0005113]
[1767194122006,5.352183,88209.0,88168.0,0.06805184]
[1767194122213,0.02194764,88213.0,88166.0,0.0005113]
[1767194122214,0.10962818,88206.0,88166.0,0.0005113]
[1767194122425,0.10962818,88204.0,88166.0,0.01185354]
[1767194122623,0.01133478,88224.0,88177.0,0.11094342]
[1767194122624,0.10962818,88219.0,88177.0,0.11094342]
[1767194122822,0.10962818,88215.0,88177.0,0.11094342]
[1767194123143,0.0912431,88218.0,88177.0,0.11094342]
[1767194123144,0.10962818,88213.0,88177.0,0.12239053]
[1767194123769,0.10962818,88211.0,88177.0,0.11104971]
[1767194124007,0.10962818,88209.0,88177.0,0.11104971]
[1767194124257,0.01039109,88210.0,88177.0,0.00010629]
[1767194124258,0.10962818,88207.0,88177.0,0.00010629]
[1767194124687,0.10962818,88203.0,88177.0,2.229e-05]
[1767194124922,0.03432476,88206.0,88177.0,2.229e-05]
[1767194124923,0.10962818,88201.0,88177.0,2.229e-05]
[1767194125158,0.10962818,88199.0,88166.0,0.0005113]
[1767194125385,6.706101,88194.0,88145.0,0.11094342]
[1767194125607,0.10962818,88191.0,88149.0,0.01134442]
[1767194125818,0.10962818,88189.0,88148.0,0.01134455]
[1767194126021,0.10962818,88189.0,88146.0,0.05672379]
[1767194126022,0.10962818,88187.0,88145.0,0.11094342]
[1767194126234,0.10962818,88185.0,88145.0,0.11094342]
[1767194126470,0.05696,88193.0,88145.0,0.11094342]
[1767194126471,0.10962818,88183.0,88145.0,0.11094342]
[1767194126684,0.0454,88193.0,88147.0,0.01134468]
[1767194126685,0.10962818,88181.0,88147.0,0.01134468]
[1767194126897,0.10962818,88181.0,88145.0,0.11094342]
[1767194126898,0.01156,88180.0,88155.0,0.11094342]
[1767194127111,0.10962818,88179.0,88155.0,0.11094342]
[1767194127560,0.10962818,88179.0,88147.0,0.11094342]
[1767194129673,0.10962818,88179.0,88147.0,0.1222881]
[1767194130043,0.10962818,88179.0,88147.0,0.11094342]
[1767194131696,0.10962818,88179.0,88148.0,0.01134455]
[1767194131905,0.10962818,88179.0,88147.0,0.17901133]
[1767194132103,0.10962818,88179.0,88153.0,0.12228733]
[1767194132306,0.10962818,88177.0,88155.0,0.01134365]
[1767194132502,0.10962818,88177.0,88158.0,0.01134327]
[1767194132709,0.10962818,88177.0,88153.0,0.11094342]
[1767194133918,0.10962818,88177.0,88146.0,0.11094342]
[1767194134336,0.10962818,88177.0,88141.0,0.01134545]
[1767194134337,0.10962818,88175.0,88139.0,0.11094342]
[1767194134535,0.10962818,88175.0,88139.0,0.17901754]
[1767194134737,0.10962818,88175.0,88140.0,0.01134558]
[1767194134978,0.10962818,88175.0,88145.0,0.11094342]
[1767194136491,0.10962818,88175.0,88146.0,0.01134481]
[1767194136721,0.01152,88174.0,88155.0,0.12228707]
[1767194136922,0.01152,88173.0,88155.0,0.11094342]
[1767194137120,0.01152,88173.0,88149.0,0.01134442]
[1767194137121,0.10962818,88172.0,88150.0,0.06806559]
[1767194137346,0.10962818,88172.0,88152.0,0.01134404]
[1767194137756,0.10911818,88172.0,88154.0,0.01154378]
[1767194137930,0.10911818,88172.0,88155.0,0.01134365]
[1767194138093,0.10911818,88172.0,88156.0,0.06806107]
[1767194138295,0.10911818,88172.0,88157.0,0.01134339]
[1767194138498,0.00035385,88194.0,88154.0,0.22707515]
[1767194138499,0.0454,88190.0,88169.0,0.01134185]
[1767194138703,0.0454,88190.0,88178.0,0.01134069]
[1767194138704,0.01152,88189.0,88178.0,0.01134069]
[1767194139102,0.01097,88189.0,88178.0,0.01134069]
[1767194139452,0.00035385,88194.0,88179.0,0.0002]
[1767194139778,0.00035385,88194.0,88179.0,0.12248398]
[1767194139982,0.00035385,88194.0,88187.0,0.01133953]
[1767194140190,0.01172,88199.0,88189.0,0.1222827]
[1767194140403,0.10962818,88214.0,88190.0,0.01133915]
[1767194140610,0.10962818,88214.0,88189.0,0.1222827]
[1767194140611,0.01152,88209.0,88194.0,0.11094342]
[1767194140809,0.01152,88209.0,88191.0,0.11094342]
[1767194141004,0.01152,88209.0,88193.0,0.11094342]
[1767194141216,0.00010613,88214.0,88193.0,0.11094342]
[1767194141840,0.00010613,88214.0,88198.0,0.12228154]
[1767194142050,0.00010613,88214.0,88201.0,0.12228115]
[1767194142249,0.00054252,88215.0,88201.0,0.12228115]
[1767194142250,0.01152,88223.0,88204.0,0.11094342]
[1767194142465,0.0002,88224.0,88204.0,0.1225869]
[1767194142624,0.0002,88224.0,88206.0,0.11094342]
[1767194143029,0.0002,88224.0,88206.0,0.08994342]
[1767194143212,0.0002,88224.0,88208.0,0.11094342]
[1767194143395,0.0002,88224.0,88209.0,0.01133671]
[1767194143612,0.0002,88224.0,88209.0,0.11094342]
[1767194143818,0.01152,88230.0,88214.0,0.11094342]
[1767194144019,0.0454,88244.0,88220.0,0.11094342]
[1767194144020,0.01152,88239.0,88220.0,0.11094342]
[1767194144467,0.01152,88239.0,88222.0,0.01133504]
[1767194144712,0.01152,88239.0,88222.0,0.11094342]
[1767194145519,0.01152,88239.0,88224.0,0.01133478]
[1767194145731,0.01152,88239.0,88223.0,0.01133491]
[1767194145925,0.01152,88239.0,88224.0,0.01133478]
[1767194146276,0.01152,88239.0,88212.0,0.0454]
[1767194146277,0.10962818,88252.0,88229.0,0.11094342]
[1767194146476,0.01152,88249.0,88229.0,0.11094342]
[1767194146747,0.0454,88260.0,88235.0,0.11094342]
[1767194146748,0.10962818,88259.0,88235.0,0.11094342]
[1767194146950,0.01152,88262.0,88237.0,0.11094342]
[1767194147154,0.12114818,88262.0,88237.0,0.11094342]
[1767194147578,0.12114818,88262.0,88238.0,0.01133298]
[1767194147752,0.12114818,88262.0,88237.0,0.11094342]
[1767194147982,0.12125449,88262.0,88237.0,0.11094342]
[1767194148190,0.000549,88237.0,88232.0,0.01152]
[1767194148597,0.10962818,88245.0,88232.0,0.01152]
[1767194149838,0.10962818,88245.0,88225.0,0.11094342]
[1767194150037,0.10962818,88245.0,88203.0,0.14641556]
[1767194150038,0.10962818,88245.0,88226.0,0.12246342]
[1767194150239,0.12114818,88252.0,88226.0,0.12246342]
[1767194150864,0.12114818,88252.0,88227.0,0.11094342]
[1767194151093,0.12114818,88252.0,88233.0,0.01133362]
[1767194151494,0.00010631,88262.0,88236.0,0.11751388]
[1767194151672,0.0002,88264.0,88255.0,0.11751388]
[1767194151894,0.0005113,88274.0,88252.0,0.01133118]
[1767194151895,0.0005113,88274.0,88257.0,0.11751388]
[1767194152101,0.0005113,88274.0,88257.0,0.12895073]
[1767194152436,0.0005113,88274.0,88258.0,0.11751388]
[1767194153649,0.11626009,88273.0,88257.0,0.00010631]
[1767194153847,0.0005113,88274.0,88257.0,0.00010631]
[1767194153848,0.001099,88258.0,88257.0,0.00010631]
[1767194154124,0.11626009,88258.0,88238.0,0.11751388]
[1767194154275,0.11626009,88258.0,88239.0,0.01152]
[1767194154276,0.1163663,88258.0,88239.0,0.01152]
[1767194154489,0.1163663,88258.0,88228.0,0.12884815]
[1767194154721,0.1163663,88258.0,88232.0,0.11751388]
[1767194154852,0.1163663,88258.0,88236.0,0.05666596]
[1767194155058,0.1163663,88258.0,88238.0,0.12884686]
[1767194155256,0.1163663,88258.0,88239.0,0.01152]
[1767194155481,0.1163663,88258.0,88239.0,0.12903388]
[1767194155648,0.1163663,88258.0,88239.0,0.14036673]
[1767194155865,0.00010621,88258.0,88241.0,0.11751388]
[1767194156302,0.00010621,88258.0,88243.0,0.11751388]
[1767194156502,0.00010621,88258.0,88245.0,0.11751388]
[1767194156948,0.000549,88245.0,88227.0,0.11751388]
[1767194157159,0.11626009,88251.0,88227.0,0.11751388]
[1767194157360,0.11626009,88251.0,88228.0,0.01152]
[1767194157739,0.11626009,88251.0,88230.0,0.05667006]
[1767194157939,0.11626009,88251.0,88230.0,0.11751388]
[1767194158364,0.01152,88256.0,88232.0,0.11751388]
[1767194158765,0.12778009,88256.0,88232.0,0.11751388]
[1767194160105,0.12778009,88256.0,88232.0,0.12884763]
[1767194160297,0.12778009,88256.0,88233.0,0.11751388]
[1767194160497,0.12778009,88256.0,88235.0,0.12884725]
[1767194160704,0.12778009,88256.0,88234.0,0.05666731]
[1767194160705,0.12778009,88256.0,88237.0,0.11751388]
[1767194160941,0.00010621,88258.0,88237.0,0.12884699]
[1767194161079,0.00010621,88258.0,88234.0,0.01133349]
[1767194161080,0.11626009,88257.0,88238.0,0.01152]
[1767194161461,0.11626009,88257.0,88233.0,0.11751388]
[1767194161638,0.11626009,88257.0,88227.0,0.11751388]
[1767194161865,0.11626009,88257.0,88183.0,1.1339974]
[1767194161866,0.11626009,88255.0,88228.0,0.01152]
[1767194162722,0.11626009,88255.0,88220.0,0.16287388]
[1767194162723,0.11626009,88255.0,88217.0,0.06801403]
[1767194162724,0.000549,88228.0,88214.0,0.01133606]
[1767194162853,0.11626009,88235.0,88215.0,0.01152]
[1767194163467,0.01152,88241.0,88218.0,0.12884943]
[1767194163664,0.12778009,88241.0,88218.0,0.11751388]
[1767194164020,0.12788626,88241.0,88218.0,0.11751388]
[1767194164862,0.00010617,88241.0,88218.0,0.11751388]
[1767194165056,0.0004876,88279.0,88244.0,0.11751388]
[1767194165206,0.11626009,88273.0,88250.0,0.01133144]
[1767194165405,0.11626009,88273.0,88253.0,0.01133105]
[1767194165607,0.11626009,88273.0,88250.0,0.01133144]
[1767194165608,0.11626009,88273.0,88252.0,0.06798665]
[1767194165808,0.11626009,88273.0,88254.0,0.01133093]
[1767194166009,0.11626009,88273.0,88247.0,0.11751388]
[1767194166209,0.11626009,88273.0,88219.0,0.04536]
[1767194166210,0.000549,88254.0,88235.0,0.11751388]
[1767194166438,0.01152,88253.0,88238.0,0.01133298]
[1767194166660,0.01152,88253.0,88236.0,0.01133324]
[1767194166863,0.01152,88253.0,88235.0,0.11751388]
[1767194167104,0.01152,88252.0,88235.0,0.11751388]
[1767194167394,0.11626009,88257.0,88235.0,0.11751388]
[1767194167693,0.01152,88251.0,88235.0,0.11751388]
[1767194167845,0.01152,88251.0,88223.0,0.22669725]
[1767194167846,0.01152,88250.0,88229.0,0.01133414]
[1767194168050,0.01152,88250.0,88230.0,0.01133401]
[1767194168261,0.01152,88250.0,88228.0,0.11751388]
[1767194168262,0.01152,88250.0,88231.0,0.00030617]
[1767194168459,0.11626009,88249.0,88231.0,0.00030617]
[1767194170114,0.05688,88248.0,88231.0,0.00030617]
[1767194170459,0.05688,88248.0,88231.0,0.01164005]
[1767194170863,0.05688,88248.0,88232.0,0.01133375]
[1767194171307,0.01042427,88247.0,88233.0,0.01133362]
[1767194171531,0.11626009,88249.0,88231.0,0.00030617]
[1767194171859,0.11626009,88249.0,88230.0,0.06800396]
[1767194171860,0.12778009,88246.0,88201.0,0.34012917]
[1767194172086,0.12778009,88246.0,88197.0,0.04536]
[1767194172087,0.000306,88231.0,88221.0,0.01133516]
[1767194172291,0.01152,88230.0,88221.0,0.0002]
[1767194173397,0.01042711,88229.0,88210.0,0.12903388]
[1767194173637,0.01152,88230.0,88214.0,0.01133606]
[1767194173842,0.01152,88230.0,88215.0,0.12884982]
[1767194174049,0.01152,88230.0,88217.0,0.01133568]
[1767194174173,0.01152,88230.0,88218.0,0.05667777]
[1767194174526,0.11626009,88234.0,88215.0,0.11751388]
[1767194174774,0.01152,88229.0,88215.0,0.11751388]
[1767194175564,0.11626009,88234.0,88215.0,0.11751388]
[1767194175765,0.01152,88228.0,88215.0,0.11751388]
[1767194175978,0.0002,88241.0,88233.0,0.11751388]
[1767194176116,0.11626009,88255.0,88235.0,0.12884725]
[1767194176317,0.03433834,88245.0,88236.0,0.11751388]
[1767194176546,0.04536,88244.0,88236.0,0.12884712]
[1767194176751,0.0002,88250.0,88243.0,0.01133234]
[1767194176949,1e-08,88250.0,88247.0,0.01133182]
[1767194177155,1e-08,88250.0,88246.0,0.000106]
[1767194177156,0.01152,88249.0,88246.0,0.000106]
[1767194177627,0.01152,88249.0,88240.0,0.01133272]
[1767194177754,0.01152,88249.0,88238.0,0.01133298]
[1767194177956,0.01152,88248.0,88240.0,0.01133272]
[1767194178159,0.01152,88247.0,88237.0,0.01133311]
[1767194178388,0.11626009,88256.0,88242.0,0.01133247]
[1767194178595,0.04536,88254.0,88242.0,0.06799461]
[1767194178794,0.04536,88254.0,88243.0,0.01133234]
[1767194179015,0.04536,88254.0,88242.0,0.01133247]
[1767194179419,0.04536,88254.0,88243.0,0.01133234]
[1767194179627,0.04536,88254.0,88240.0,0.01133272]
[1767194179836,0.16162009,88254.0,88237.0,0.00010623]
[1767194180055,0.00055,88240.0,88237.0,0.00010623]
[1767194180195,0.01152,88239.0,88237.0,0.00010623]
[1767194180390,0.04536,88254.0,88237.0,0.00010623]
[1767194180391,0.01152,88238.0,88237.0,0.00010623]
[1767194180720,0.010971,88238.0,88237.0,0.00010623]
[1767194181200,0.010971,88238.0,88230.0,0.0002]
[1767194182063,0.010971,88238.0,88230.0,0.01153401]
[1767194182313,0.010971,88238.0,88230.0,0.0002]
[1767194182730,0.01152,88237.0,88230.0,0.01153401]
[1767194183292,0.01152,88237.0,88230.0,0.0002]
[1767194183490,0.01152,88236.0,88230.0,0.0002]
[1767194183687,0.01152,88235.0,88230.0,0.0002]
[1767194183911,0.01160024,88235.0,88230.0,0.0002]
[1767194184115,0.11626009,88246.0,88230.0,0.0002]
[1767194184443,0.13873647,88245.0,88230.0,0.0002]
[1767194184656,0.12829931,88243.0,88230.0,0.0002]
[1767194185446,0.01043381,88242.0,88230.0,0.0002]
[1767194185642,0.01152,88244.0,88230.0,0.0002]
[1767194185643,0.13873312,88241.0,88230.0,0.0002]
[1767194185963,0.12829931,88239.0,88230.0,0.0002]
[1767194186297,0.01043381,88238.0,88230.0,0.0002]
[1767194186469,0.12829931,88239.0,88230.0,0.0002]
[1767194186470,0.01043381,88237.0,88230.0,0.0002]
[1767194186705,0.12829931,88239.0,88230.0,0.0002]
[1767194186909,0.0104344,88238.0,88230.0,0.0002]
[1767194187129,0.12829931,88239.0,88230.0,0.0002]
[1767194187130,0.0104344,88237.0,88230.0,0.0002]
[1767194187336,0.01148,88237.0,88230.0,0.0002]
[1767194188055,0.13977931,88237.0,88230.0,0.0002]
[1767194190444,0.13977931,88237.0,88194.0,0.06109742]
[1767194190445,0.13977931,88237.0,88205.0,0.10902433]
[1767194190820,0.13977931,88237.0,88205.0,0.09799482]
[1767194190821,0.12829931,88235.0,88205.0,0.09799482]
[1767194191027,0.01148,88237.0,88205.0,0.09799482]
[1767194191028,0.12829931,88233.0,88205.0,0.09799482]
[1767194191223,0.12829931,88233.0,88204.0,0.0002]
[1767194191224,0.12829931,88231.0,88204.0,0.0002]
[1767194191423,0.12829931,88229.0,88204.0,0.0002]
[1767194191575,0.12829931,88227.0,88204.0,0.0002]
[1767194191756,0.12829931,88225.0,88204.0,0.0002]
[1767194192438,0.01148,88230.0,88204.0,0.0002]
[1767194192439,0.12829931,88223.0,88204.0,0.0002]
[1767194192657,0.12829931,88223.0,88184.0,0.22679788]
[1767194192658,0.12829931,88203.0,88184.0,0.06803903]
[1767194192859,0.12829931,88203.0,88174.0,0.11027968]
[1767194192860,0.13977931,88202.0,88181.0,0.05670044]
[1767194193074,0.01148,88201.0,88182.0,0.11033986]
[1767194193283,0.01148,88200.0,88183.0,0.09899968]
[1767194193483,0.01148,88200.0,88183.0,0.11033973]
[1767194193683,0.01148,88200.0,88184.0,0.11063729]
[1767194193904,0.01148,88200.0,88184.0,0.09965122]
[1767194194946,0.12829931,88206.0,88186.0,0.01133966]
[1767194195145,0.12829931,88206.0,88187.0,0.01133953]
[1767194195381,0.12829931,88204.0,88188.0,0.06803639]
[1767194195594,0.12829931,88204.0,88191.0,0.01133902]
[1767194195772,0.01148,88203.0,88189.0,0.06803549]
[1767194195933,0.01148,88203.0,88189.0,0.01133928]
[1767194196133,0.01148,88203.0,88190.0,0.01133915]
[1767194196332,0.01148,88203.0,88188.0,0.01133941]
[1767194196541,0.12829931,88203.0,88190.0,0.01133915]
[1767194196747,0.01148,88202.0,88190.0,0.01133915]
[1767194197365,0.01148,88202.0,88190.0,0.06803469]
[1767194197770,0.01148,88202.0,88190.0,0.01133915]
[1767194197970,0.01148,88202.0,88191.0,0.01133902]
[1767194198178,0.01148,88202.0,88189.0,0.06803552]
[1767194198371,0.01148,88202.0,88191.0,0.01133902]
[1767194198635,0.01148,88202.0,88192.0,0.01133889]
[1767194198934,0.12829931,88213.0,88195.0,0.05669239]
[1767194199073,0.12829931,88213.0,88170.0,0.65910492]
[1767194199074,0.13977931,88212.0,88185.0,0.01133979]
[1767194199272,0.13977931,88212.0,88184.0,0.00035385]
[1767194199492,0.13977931,88212.0,88186.0,0.01133966]
[1767194199743,0.13977931,88212.0,88184.0,0.01169377]
[1767194199890,0.13977931,88212.0,88184.0,0.00035385]
[1767194200294,0.13977931,88212.0,88184.0,0.01169377]
[1767194200500,0.13977931,88212.0,88186.0,0.01133966]
[1767194200700,0.13977931,88212.0,88184.0,0.06839337]
[1767194200701,0.13977931,88212.0,88184.0,0.00035385]
[1767194202110,0.13977931,88212.0,88184.0,8.5e-07]
[1767194202506,0.12829931,88210.0,88184.0,8.5e-07]
[1767194203319,0.01148,88212.0,88162.0,0.10182733]
[1767194203320,0.12829931,88208.0,88162.0,0.10182733]
[1767194203531,0.12829931,88208.0,88174.0,0.0002]
[1767194203532,0.0002,88194.0,88174.0,0.0002]
[1767194203726,0.12829931,88192.0,88174.0,0.0002]
[1767194203999,0.12829931,88192.0,88174.0,4e-06]
[1767194206303,0.12829931,88190.0,88174.0,4e-06]
[1767194206881,0.12829931,88190.0,88160.0,0.10255516]
[1767194206882,0.12829931,88190.0,88154.0,0.01168]
[1767194207113,0.12829931,88188.0,88154.0,0.10327094]
[1767194207378,0.12829931,88186.0,88154.0,0.0002]
[1767194207595,0.05688,88191.0,88154.0,0.0002]
[1767194207596,0.12829931,88184.0,88154.0,0.0002]
[1767194207726,0.05688,88191.0,88154.0,0.0002]
[1767194207727,0.12829931,88182.0,88154.0,0.0002]
[1767194208553,0.12829931,88180.0,88154.0,0.0002]
[1767194208729,0.12829931,88178.0,88154.0,0.0002]
[1767194209526,0.12829931,88176.0,88154.0,0.0002]
[1767194209766,0.12829931,88174.0,88154.0,0.0002]
[1767194210423,0.00035389,88176.0,88154.0,0.0002]
[1767194210424,0.12829931,88172.0,88154.0,0.0002]
[1767194210654,0.12829931,88170.0,88154.0,0.0002]
[1767194211724,0.00035389,88176.0,88154.0,0.0002]
[1767194211725,0.01148,88172.0,88170.0,0.000549]
[1767194211933,0.01148,88172.0,88160.0,0.10454865]
[1767194212135,0.12191158,88171.0,88154.0,0.0002]
[1767194213281,0.12191158,88171.0,88147.0,0.0004876]
[1767194213506,0.12191158,88171.0,88147.0,0.1055065]
[1767194213717,0.12191158,88169.0,88147.0,0.1055065]
[1767194213886,0.12191158,88167.0,88147.0,0.1055065]
[1767194214066,0.12191158,88167.0,88149.0,0.11636332]
[1767194214268,0.00035389,88176.0,88155.0,0.1050189]
[1767194214269,0.12191158,88175.0,88155.0,0.1050189]
[1767194214506,0.12191158,88175.0,88157.0,0.10524998]
[1767194214717,0.01148,88174.0,88157.0,0.10524998]
[1767194214946,0.01148,88174.0,88155.0,0.10524998]
[1767194215229,0.12191158,88175.0,88155.0,0.10524998]
[1767194215448,0.01148,88173.0,88155.0,0.10524998]
[1767194215677,0.13339158,88173.0,88155.0,0.10524998]
[1767194215889,0.13339158,88173.0,88137.0,0.05694597]
[1767194216096,0.000349,88155.0,88141.0,0.1056784]
[1767194216524,0.13339158,88160.0,88142.0,0.01134532]
[1767194216743,0.13339158,88160.0,88145.0,0.10570421]
[1767194216957,0.13339158,88160.0,88147.0,0.0004876]
[1767194218058,0.000349,88147.0,88141.0,0.10612741]
[1767194218315,0.13339158,88160.0,88141.0,0.10612741]
[1767194218573,0.13339158,88160.0,88141.0,0.0002]
[1767194219012,0.13339158,88160.0,88141.0,0.10634806]
[1767194219216,0.00035367,88160.0,88141.0,0.10634806]
[1767194219440,0.01183367,88160.0,88146.0,0.10614806]
[1767194219643,0.01183367,88160.0,88144.0,0.10636617]
[1767194220291,0.12191158,88159.0,88141.0,0.0002]
[1767194220506,0.12191158,88159.0,88142.0,0.01134532]
[1767194220712,0.01148,88172.0,88160.0,0.10658177]
[1767194220885,0.13339158,88172.0,88160.0,0.00010621]
[1767194221099,0.01148,88172.0,88160.0,0.00010621]
[1767194221292,0.01148,88172.0,88160.0,0.11803099]
[1767194221528,0.0002,88194.0,88172.0,0.0002]
[1767194221529,0.12191158,88188.0,88172.0,0.0002]
[1767194221741,0.12191158,88193.0,88172.0,0.0002]
[1767194221933,0.12191158,88193.0,88174.0,0.1067949]
[1767194221934,0.01148,88192.0,88174.0,0.1067949]
[1767194222539,0.12191158,88193.0,88174.0,0.1067949]
[1767194223048,0.01148,88192.0,88175.0,0.10700558]
[1767194223275,0.01148,88192.0,88111.0,0.249]
[1767194223276,0.12191158,88173.0,88148.0,0.01148]
[1767194223475,0.12191158,88171.0,88148.0,0.01183367]
[1767194225453,0.01148,88170.0,88149.0,0.10741971]
[1767194225662,0.13339158,88170.0,88149.0,0.10741971]
[1767194226064,0.13339158,88170.0,88149.0,0.11876413]
[1767194226297,0.13339158,88170.0,88149.0,0.10741971]
[1767194226497,0.13339158,88170.0,88149.0,0.11876413]
[1767194226699,0.13339158,88170.0,88149.0,0.10782438]
[1767194227002,0.13339158,88170.0,88149.0,0.1191688]
[1767194227417,0.12191158,88170.0,88153.0,0.01134391]
[1767194227655,0.01128,88170.0,88156.0,0.10802324]
[1767194227857,0.01128,88170.0,88160.0,0.0002]
[1767194228395,0.01148,88177.0,88161.0,0.10802324]
[1767194228981,0.12191158,88175.0,88160.0,0.0002]
[1767194229223,0.12191158,88173.0,88146.0,0.10821981]
[1767194229490,0.12191158,88171.0,88147.0,0.01134468]
[1767194229739,0.12191158,88171.0,88146.0,0.11956462]
[1767194229942,0.12191158,88171.0,88146.0,0.10821981]
[1767194230306,0.12191158,88171.0,88146.0,0.11956462]
[1767194230307,0.01043158,88170.0,88146.0,0.11956462]
[1767194230485,0.12191158,88169.0,88146.0,0.10821981]
[1767194230692,0.12191158,88167.0,88148.0,0.01183367]
[1767194231318,0.12191158,88165.0,88148.0,0.01183367]
[1767194231524,0.12191158,88163.0,88148.0,0.01183367]
[1767194231724,0.13339158,88163.0,88148.0,0.01183367]
[1767194232319,0.13339158,88163.0,88148.0,0.12062975]
[1767194232533,0.13339158,88163.0,88148.0,0.01183367]
[1767194232932,0.12191158,88161.0,88148.0,0.01183367]
[1767194233357,0.010442,88160.0,88148.0,0.01183367]
[1767194233595,0.12191158,88161.0,88148.0,0.01183367]
[1767194233869,0.12191158,88174.0,88148.0,0.12100298]
[1767194234013,0.12191158,88172.0,88148.0,0.12100298]
[1767194234218,0.04597856,88173.0,88148.0,0.12100298]
[1767194234219,0.12191158,88170.0,88148.0,0.12100298]
[1767194234468,0.12191158,88168.0,88150.0,0.01134429]
[1767194234660,0.13235365,88167.0,88149.0,0.17741927]
[1767194234835,0.13235365,88167.0,88148.0,0.01183367]
[1767194234836,0.01044207,88166.0,88150.0,0.0927791]
[1767194235042,0.00055,88150.0,88148.0,0.00333523]
[1767194235264,0.12191158,88166.0,88148.0,0.00333523]
[1767194235423,0.12191158,88164.0,88148.0,0.00333523]
[1767194235627,0.13235919,88163.0,88148.0,0.00333523]
[1767194235867,0.01044761,88162.0,88148.0,0.00333523]
[1767194236265,0.13235919,88161.0,88148.0,0.00333523]
[1767194236476,0.01148,88165.0,88148.0,0.00333523]
[1767194236477,0.12191158,88159.0,88148.0,0.00333523]
[1767194236709,0.12191158,88157.0,88142.0,0.01148]
[1767194236914,0.12191158,88155.0,88142.0,0.01148]
[1767194237143,0.12191158,88153.0,88142.0,0.01148]
[1767194237493,0.12191158,88153.0,88141.0,0.0002]
[1767194237810,0.12191158,88153.0,88137.0,0.0002]
[1767194238645,0.12191158,88151.0,88137.0,0.0002]
[1767194239419,0.13426059,88149.0,88137.0,0.0002]
[1767194239621,0.13426059,88147.0,88127.0,0.01211728]
[1767194240983,0.13426059,88145.0,88127.0,0.01211728]
[1767194241144,0.01148,88148.0,88127.0,0.01211728]
[1767194241145,0.13341496,88143.0,88127.0,0.01211728]
[1767194241707,0.13341496,88143.0,88126.0,0.0002]
[1767194241708,0.13341496,88141.0,88126.0,0.0002]
[1767194241906,0.13341496,88139.0,88126.0,0.0002]
[1767194242327,0.13341496,88139.0,88120.0,0.01148]
[1767194242564,0.13341496,88137.0,88115.0,0.0002]
[1767194242772,0.13341496,88135.0,88115.0,0.0002]
[1767194245090,0.13341496,88135.0,88115.0,0.09985201]
[1767194245465,0.14489496,88134.0,88115.0,0.11120081]
[1767194245702,0.01148,88133.0,88116.0,0.16792322]
[1767194245938,0.010931,88133.0,88116.0,0.09983118]
[1767194246081,0.13341496,88132.0,88116.0,0.09983118]
[1767194246260,0.13341496,88132.0,88115.0,0.0002]
[1767194248912,0.13341496,88132.0,88115.0,0.10055643]
[1767194248913,0.01148,88131.0,88115.0,0.10055643]
[1767194249111,0.14489496,88131.0,88115.0,0.10055643]
[1767194249702,0.14489496,88131.0,88115.0,0.0002]
[1767194250602,0.13341496,88151.0,88115.0,0.10089662]
[1767194250903,5.772044,88146.0,88116.0,0.10069662]
[1767194251102,0.03003892,88153.0,88116.0,0.10069662]
[1767194251103,0.13341496,88142.0,88116.0,0.10069662]
[1767194251330,0.00035374,88157.0,88115.0,0.0002]
[1767194251331,0.00035374,88157.0,88142.0,0.00055]
[1767194251484,0.13341496,88170.0,88144.0,0.00091043]
[1767194251684,0.13341496,88168.0,88146.0,0.01134481]
[1767194251890,0.13341496,88168.0,88149.0,0.01134442]
[1767194252082,0.13341496,88168.0,88147.0,0.00091043]
[1767194252307,0.13341496,88168.0,88074.0,0.08175599]
[1767194252308,0.000549,88147.0,88133.0,0.00091043]
[1767194252574,0.01152,88146.0,88135.0,0.06807729]
[1767194252795,0.01152,88146.0,88136.0,0.0113461]
[1767194252999,0.01152,88146.0,88136.0,0.06807654]
[1767194253215,0.01152,88146.0,88139.0,0.01134571]
[1767194253440,0.13341496,88179.0,88143.0,0.0113452]
[1767194253571,0.13341496,88158.0,88138.0,0.00124558]
[1767194253772,0.13341496,88156.0,88138.0,0.00124558]
[1767194253967,0.04544,88155.0,88138.0,0.06807505]
[1767194254173,0.05692,88154.0,88145.0,0.00129639]
[1767194254376,0.13341496,88171.0,88145.0,6.825e-05]
[1767194254698,0.04544,88170.0,88151.0,6.825e-05]
[1767194255014,0.13361496,88180.0,88156.0,0.01134352]
[1767194255333,0.13361496,88180.0,88154.0,6.825e-05]
[1767194255334,0.13361496,88180.0,88155.0,0.01134365]
[1767194255477,0.13361496,88180.0,88158.0,0.05671629]
[1767194255676,0.13361496,88180.0,88151.0,0.22688132]
[1767194255677,0.05692,88179.0,88159.0,0.01134314]
[1767194256016,0.0002,88180.0,88157.0,0.01134339]
[1767194256017,0.04564,88180.0,88157.0,0.01134339]
[1767194256178,0.01148,88178.0,88159.0,0.01134314]
[1767194256376,0.0002,88180.0,88166.0,6.6e-05]
[1767194256602,0.01152,88179.0,88169.0,6.6e-05]
[1767194256962,0.01152,88179.0,88161.0,6.6e-05]
[1767194257186,0.01152,88179.0,88153.0,6.6e-05]
[1767194257187,0.13341496,88178.0,88153.0,6.6e-05]
[1767194258857,0.13341496,88178.0,88144.0,0.01169881]
[1767194259163,0.13341496,88178.0,88144.0,0.00035374]
[1767194259363,0.13341496,88178.0,88144.0,0.01169881]
[1767194259505,0.13341496,88178.0,88145.0,0.00014382]
[1767194259706,0.13341496,88178.0,88146.0,0.06806884]
[1767194259910,0.13341496,88178.0,88148.0,0.01134455]
[1767194260296,0.13341496,88178.0,88151.0,0.00014382]
[1767194260426,0.19033496,88177.0,88156.0,0.00016493]
[1767194261023,0.13341496,88176.0,88156.0,0.00016493]
[1767194261421,0.13341496,88176.0,88155.0,0.00018368]
[1767194261780,0.0002,88180.0,88163.0,0.0115263]